[Event "SVK ECo-C Extraliga 2018-19"]
[Site "Slovakia"]
[Date "2019.04.13"]
[Round "10.2"]
[White "Petenyi, Tamas"]
[Black "Babula, Vlastimil"]
[Result "1/2-1/2"]
[ECO "B48"]
[WhiteElo "2418"]
[BlackElo "2549"]
[Annotator "ChessBase"]
[PlyCount "41"]
[EventDate "2018.11.10"]
[EventType "team-tourn"]
[EventCountry "SVK"]
[SourceTitle "playchess.com"]
[Source "ChessBase"]
[SourceQuality "1"]
[WhiteTeam "Streda"]
[BlackTeam "Snina"]
[TimeControl "40/5400+30:1800+30"]

1. e4 {[%emt 0:00:00]} c5 {[%emt 0:00:00]} 2. Nf3 {[%emt 0:00:00]} e6 {[%emt 0:00:01]} 3. d4 {[%emt 0:00:30]} cxd4 {[%emt 0:00:07]} 4. Nxd4 {[%emt 0:00:04]} Nc6 {[%emt 0:00:28]} 5. Nc3 {[%emt 0:00:15]} Qc7 {[%emt 0:00:35]} 6. Be3 {[%emt 0:00:29]} a6 {[%emt 0:00:35]} 7. Qd2 {[%emt 0:00:30]} Nf6 {[%emt 0:00:41]} 8. f3 {[%emt 0:00:50]} b5 {[%emt 0:01:55]} 9. O-O-O {[%emt 0:01:16]} Be7 {[%emt 0:01:04]} 10. g4 {[%emt 0:03:24]} Nxd4 {[%emt 0:01:07]} 11. Bxd4 {[%emt 0:01:09]} Bb7 {[%emt 0:00:44]} 12. Kb1 {[%emt 0:12:46]} O-O {[%emt 0:10:07]} 13. h4 {[%emt 0:06:33]} Rac8 {[%emt 0:21:44]} 14. Bd3 {[%emt 0:09:27]} b4 {[%emt 0:07:49]} 15. Na4 {[%emt 0:01:18]} d5 {[%emt 0:07:41]} 16. e5 {[%emt 0:03:46]} Nd7 {[%emt 0:03:06]} 17. Qe3 {[%emt 0:00:25]} Bc6 {[%emt 0:07:34]} 18. Nb6 {[%emt 0:00:57]} Nxb6 {[%emt 0:00:11]} 19. Bxb6 {[%emt 0:00:04]} Qb7 {[%emt 0:00:22]} 20. Bd4 {[%emt 0:00:48]} Bb5 {[%emt 0:00:07]} 21. f4 {[%emt 0:03:24]} 1/2-1/2

[Event "SVK ECo-C Extraliga 2018-19"]
[Site "Slovakia"]
[Date "2019.04.13"]
[Round "10.3"]
[White "Mihok, Oliver"]
[Black "Antoniewski, Rafal"]
[Result "1/2-1/2"]
[ECO "B56"]
[WhiteElo "2548"]
[BlackElo "2500"]
[Annotator "ChessBase"]
[PlyCount "34"]
[EventDate "2018.11.10"]
[EventType "team-tourn"]
[EventCountry "SVK"]
[SourceTitle "playchess.com"]
[Source "ChessBase"]
[SourceQuality "1"]
[WhiteTeam "Podhajska"]
[BlackTeam "Dunajov"]
[TimeControl "40/5400+30:1800+30"]

1. e4 {[%emt 0:00:00]} c5 {[%emt 0:01:44]} 2. Nf3 {[%emt 0:00:00]} d6 {[%emt 0:00:06]} 3. d4 {[%emt 0:00:01]} cxd4 {[%emt 0:00:05]} 4. Nxd4 {[%emt 0:00:03]} Nf6 {[%emt 0:00:07]} 5. Nc3 {[%emt 0:00:03]} Bd7 {[%emt 0:01:09]} 6. Bg5 {[%emt 0:01:02]} e6 {[%emt 0:00:29]} 7. Qd2 {[%emt 0:02:02]} a6 {[%emt 0:00:07]} 8. O-O-O {[%emt 0:00:32]} h6 {[%emt 0:00:05]} 9. Bh4 {[%emt 0:02:12]} Nxe4 {[%emt 0:05:46]} 10. Qf4 {[%emt 0:00:10]} Ng5 {[%emt 0:00:07]} 11. Qe3 {[%emt 0:01:18]} Be7 {[%emt 0:01:48]} 12. f4 {[%emt 0:00:14]} Nh7 {[%emt 0:00:17]} 13. Bxe7 {[%emt 0:00:29]} Qxe7 {[%emt 0:00:05]} 14. g4 {[%emt 0:02:21]} Bc6 {[%emt 0:07:30]} 15. Rg1 {[%emt 0:08:09]} Nd7 {[%emt 0:06:14]} 16. Bg2 {[%emt 0:12:57]} Bxg2 {[%emt 0:14:33]} 17. Rxg2 {[%emt 0:00:07]} g5 {[%emt 0:00:43]} 1/2-1/2

[Event "SVK ECo-C Extraliga 2018-19"]
[Site "Slovakia"]
[Date "2019.04.13"]
[Round "10.3"]
[White "Jurcik, Marian"]
[Black "Michalik, Peter"]
[Result "1/2-1/2"]
[ECO "C85"]
[WhiteElo "2494"]
[BlackElo "2577"]
[Annotator "ChessBase"]
[PlyCount "20"]
[EventDate "2018.11.10"]
[EventType "team-tourn"]
[EventCountry "SVK"]
[SourceTitle "playchess.com"]
[Source "ChessBase"]
[SourceQuality "1"]
[WhiteTeam "Zilina"]
[BlackTeam "Modra"]
[TimeControl "40/5400+30:1800+30"]

{[WhiteElo "2494"] [WhiteCountry ""] [WhiteFideId "14907518"] [BlackElo "2577"] [BlackCountry ""] [BlackFideId "14907526"]} 1. e4 e5 2. Nf3 Nc6 3. Bb5 a6 4. Ba4 Nf6 5. O-O Be7 6. Bxc6 dxc6 7. d3 Nd7 8. Nc3 O-O 9. Kh1 Bd6 10. Bg5 f6 1/2-1/2

[Event "SVK ECo-C Extraliga 2018-19"]
[Site "Slovakia"]
[Date "2019.04.13"]
[Round "10.3"]
[White "Leniart, Arkadiusz"]
[Black "Antal, Gergely"]
[Result "1/2-1/2"]
[ECO "C15"]
[WhiteElo "2486"]
[BlackElo "2552"]
[Annotator "ChessBase"]
[PlyCount "41"]
[EventDate "2018.11.10"]
[EventType "team-tourn"]
[EventCountry "SVK"]
[SourceTitle "playchess.com"]
[Source "ChessBase"]
[SourceQuality "1"]
[WhiteTeam "Prakovce"]
[BlackTeam "Slovan"]
[TimeControl "40/5400+30:1800+30"]

1. e4 {[%emt 0:00:00]} e6 {[%emt 0:00:00]} 2. d4 {[%emt 0:00:00]} d5 {[%emt 0:00:00]} 3. Nc3 {[%emt 0:01:00]} Bb4 {[%emt 0:00:00]} 4. Qd3 {[%emt 0:01:16]} dxe4 {[%emt 0:03:35]} 5. Qxe4 {[%emt 0:00:06]} Nc6 {[%emt 0:03:44]} 6. Bb5 {[%emt 0:02:49]} Nge7 {[%emt 0:01:42]} 7. Nge2 {[%emt 0:02:07]} a6 {[%emt 0:20:30]} 8. Bxc6+ {[%emt 0:00:07]} Nxc6 {[%emt 0:00:06]} 9. Bf4 {[%emt 0:01:29]} Bxc3+ {[%emt 0:01:33]} 10. Nxc3 {[%emt 0:09:20]} Qxd4 {[%emt 0:01:03]} 11. Qxd4 {[%emt 0:05:39]} Nxd4 {[%emt 0:00:05]} 12. O-O-O {[%emt 0:00:11]} Nb5 {[%emt 0:02:19]} 13. Nxb5 {[%emt 0:00:56]} axb5 {[%emt 0:00:06]} 14. Bxc7 {[%emt 0:00:09]} Bd7 {[%emt 0:00:29]} 15. a3 {[%emt 0:03:55]} Bc6 {[%emt 0:00:07]} 16. f3 {[%emt 0:00:35]} f6 {[%emt 0:05:20]} 17. Bd6 {[%emt 0:01:32]} Kf7 {[%emt 0:00:15]} 18. b3 {[%emt 0:00:10]} Rac8 {[%emt 0:04:52]} 19. Kb2 {[%emt 0:00:48]} Rhd8 {[%emt 0:03:23]} 20. Bb4 {[%emt 0:01:57]} g5 {[%emt 0:05:40]} 21. Ba5 {[%emt 0:07:28]} 1/2-1/2

[Event "SVK ECo-C Extraliga 2018-19"]
[Site "Slovakia"]
[Date "2019.04.13"]
[Round "10.3"]
[White "Hrabusa, Matej"]
[Black "Jablonicky, Martin"]
[Result "0-1"]
[ECO "A48"]
[WhiteElo "2406"]
[BlackElo "2322"]
[Annotator "NA"]
[PlyCount "100"]
[EventDate "2018.11.10"]
[EventType "team-tourn"]
[EventCountry "SVK"]
[SourceTitle "playchess.com"]
[Source "ChessBase"]
[SourceQuality "1"]
[WhiteTeam "Liptovska"]
[BlackTeam "Osuske"]
[TimeControl "40/5400+30:1800+30"]

1. d4 {[%emt 0:00:00]} Nf6 {[%emt 0:00:00]} 2. Nf3 {[%emt 0:00:00]} g6 {[%emt 0:00:00]} 3. c4 {[%emt 0:00:00]} Bg7 {[%emt 0:00:00]} 4. e3 {[%emt 0:00:00]} O-O {[%emt 0:00:01]} 5. Be2 {[%emt 0:00:00]} b6 {[%emt 0:01:19]} 6. O-O {[%emt 0:00:15]} Bb7 {[%emt 0:00:10]} 7. Nc3 {[%emt 0:05:16]} d6 {[%emt 0:01:33]} 8. Qc2 {[%emt 0:02:07] E61: King's Indian: Early deviations for White, including Smyslov System} (8. b4 e5 9. dxe5 Nfd7 10. Bb2 Nxe5 11. Nxe5 Bxe5 12. Bf3 Bxf3 13. Qxf3 Na6 14. a3 Qh4 15. g3 Qxc4 {0-1 (64) Sargissian,G (2672)-Rapport,R (2707) Riadh 2017}) 8... Nbd7 {[%emt 0:00:33]} 9. Rd1 {[%emt 0:07:21]} e6 {[%emt 0:00:07]} 10. Rb1 $146 {[%emt 0:01:38]} ({Predecessor:} 10. e4 Ne8 11. Bg5 f6 12. Be3 Qc8 13. Qd2 a6 14. a4 f5 15. exf5 exf5 {½-½ (71) Shirokov,I (1000)-Shepelev,A (1548) St Petersburg 2018}) 10... Qe7 {[%emt 0:01:34]} 11. b4 {[%emt 0:01:47]} e5 {[%emt 0:05:00]} 12. c5 {[%emt 0:11:38]} exd4 {[%emt 0:06:30]} 13. cxd6 {[%emt 0:01:56]} cxd6 {[%emt 0:00:42]} 14. Nxd4 {[%emt 0:02:00]} Ne5 {[%emt 0:04:45]} 15. h3 {[%emt 0:05:50]} Rac8 {[%emt 0:00:30]} 16. Qb3 {[%emt 0:01:42]} Ne4 {[%emt 0:02:48]} 17. Nxe4 {[%emt 0:05:57]} Bxe4 {[%emt 0:00:04]} 18. Rb2 {[%emt 0:00:52]} Qg5 {[%emt 0:08:04]} 19. f3 {[%emt 0:02:12]} (19. g3 $17 {was necessary.}) 19... Bd5 {[%emt 0:07:09]} 20. Qa3 {[%emt 0:05:22]} (20. Qxd5 $11 Rxc1 21. Rb3 Rxd1+ 22. Bxd1) 20... Nc4 {[%emt 0:02:23]} 21. Bxc4 $1 {[%emt 0:00:19]} Rxc4 {[%emt 0:00:15]} 22. Rf2 {[%emt 0:05:08]} Rfc8 {[%emt 0:06:27]} 23. Ne2 $11 {[%emt 0:02:58]} Be6 {[%emt 0:07:40]} 24. e4 {[%emt 0:06:52]} Qb5 {[%emt 0:03:23]} 25. Qe3 {[%emt 0:07:18]} Qxb4 {[%emt 0:05:56]} 26. Ba3 {[%emt 0:01:43]} Qa4 {[%emt 0:01:12]} 27. Rxd6 {[%emt 0:02:09]} b5 {[%emt 0:01:41]} 28. Rd2 {[%emt 0:01:45]} Rc2 {[%emt 0:05:29]} 29. Rxc2 {[%emt 0:04:16]} Rxc2 {[%emt 0:00:55]} 30. Qd3 {[%emt 0:00:33]} h6 {[%emt 0:05:58]} 31. Be7 {[%emt 0:04:54]} Kh7 {[%emt 0:10:00]} 32. Kh2 {[%emt 0:05:48]} Bc4 {[%emt 0:00:28]} 33. Qe3 {[%emt 0:00:24]} Qxa2 {[%emt 0:02:00]} 34. Nc1 {[%emt 0:02:13]} Qb1 {[%emt 0:00:13]} 35. Rxc2 {[%emt 0:01:45]} Qxc2 {[%emt 0:00:04]} 36. Bb4 {[%emt 0:00:31]} g5 {[%emt 0:08:42]} 37. Qc5 {[%emt 0:00:59]} Bf6 {[%emt 0:03:11]} 38. Qf5+ {[%emt 0:02:13]} Kg7 {[%emt 0:00:08]} 39. Bf8+ {[%emt 0:01:07]} Kxf8 {[%emt 0:00:12]} 40. Qxf6 {[%emt 0:00:08]} Qxc1 {[%emt 0:00:19]} 41. Qh8+ {[%emt 0:01:52]} Ke7 {[%emt 0:00:00]} 42. Qe5+ {[%emt 0:00:07]} Be6 {[%emt 0:00:00]} 43. Qxb5 {[%emt 0:00:15]} Qc7+ {[%emt 0:00:13]} 44. Kh1 {[%emt 0:00:35]} Kf6 {[%emt 0:02:22]} 45. Qb2+ {[%emt 0:00:37]} Qe5 {[%emt 0:00:28]} 46. Qa3 {[%emt 0:00:08]} a5 {[%emt 0:01:40]} 47. Qf8 {[%emt 0:00:16]} Kg6 {[%emt 0:00:22]} 48. Qg8+ {[%emt 0:00:06]} Qg7 {[%emt 0:00:19]} 49. Qa8 {[%emt 0:00:08]} Qa1+ {[%emt 0:00:09]} 50. Kh2 {[%emt 0:00:05]} Kg7 {[%emt 0:00:42]} 0-1

[Event "SVK ECo-C Extraliga 2018-19"]
[Site "Slovakia"]
[Date "2019.04.13"]
[Round "10.3"]
[White "Cibickova, Zuzana"]
[Black "Roubalik, Jakub"]
[Result "1/2-1/2"]
[ECO "C44"]
[WhiteElo "2239"]
[BlackElo "2417"]
[Annotator "NA"]
[PlyCount "49"]
[EventDate "2018.11.10"]
[EventType "team-tourn"]
[EventCountry "SVK"]
[SourceTitle "playchess.com"]
[Source "ChessBase"]
[SourceQuality "1"]
[WhiteTeam "Komarno"]
[BlackTeam "Dubnica"]
[TimeControl "40/5400+30:1800+30"]

1. e4 e5 {[%emt 0:00:00]} 2. Nf3 {[%emt 0:00:00]} Nc6 {[%emt 0:00:00]} 3. d4 {[%emt 0:00:59]} exd4 {[%emt 0:00:00]} 4. Nxd4 {[%emt 0:00:03]} Nf6 5. Nxc6 {[%emt 0:01:38]} bxc6 {[%emt 0:00:13]} 6. Bd3 {[%emt 0:00:33]} d5 {[%emt 0:02:30]} 7. exd5 {[%emt 0:02:03]} cxd5 {[%emt 0:00:07]} 8. O-O {[%emt 0:00:10]} Be7 {[%emt 0:00:34]} 9. Nd2 {[%emt 0:01:18] C45: Scotch Game} (9. c4 O-O 10. cxd5 Bb7 11. Bc4 Bxd5 12. Bxd5 Nxd5 13. Nd2 c6 14. Re1 Rb8 15. Ne4 f5 16. Ng3 f4 17. Ne4 f3 18. gxf3 {½-½ (54) Fedoseev,V (2707)-Jakovenko,D (2748) Satka 2018}) 9... O-O {[%emt 0:00:40]} 10. b3 {[%emt 0:01:40]} c5 {[%emt 0:09:03]} 11. Bb2 {[%emt 0:01:03]} Bb7 {[%emt 0:19:17]} 12. Re1 $146 {[%emt 0:02:28]} ({Predecessor:} 12. c4 d4 13. Re1 Bd6 14. Ne4 Nxe4 15. Bxe4 Bxh2+ 16. Kxh2 Qh4+ 17. Kg1 Bxe4 18. b4 Rab8 19. Qe2 Bc6 20. bxc5 d3 21. Qe5 Qg4 22. g3 Rxb2 23. Qxb2 Qf3 {0-1 (23) Matthes,B (1750)-Lukasiewicz,K (2247) Gorzow Wielkopolski 2018}) 12... d4 {[%emt 0:09:00]} 13. Be2 {[%emt 0:23:12]} Qc7 {[%emt 0:04:15]} 14. Bf3 {[%emt 0:02:31]} Nd5 {[%emt 0:03:02]} 15. Nc4 {[%emt 0:02:16]} Bf6 {[%emt 0:11:32]} 16. Be4 {[%emt 0:06:22]} Rae8 {[%emt 0:04:00]} 17. Qh5 {[%emt 0:07:12]} (17. Qf3 $5 {[%cal Re4d5]} Rxe4 18. Rxe4 $11) 17... Rxe4 {[%emt 0:16:12]} 18. Rxe4 {[%emt 0:01:20]} Nf4 {[%emt 0:04:53]} 19. Qf5 {[%emt 0:02:23]} Bxe4 {[%emt 0:06:38]} 20. Qxe4 {[%emt 0:00:10]} g6 {[%emt 0:03:25]} 21. Re1 {[%emt 0:01:57]} Ne6 $11 {[%emt 0:00:36]} 22. Bc1 {[%emt 0:04:16]} Rd8 {[%emt 0:02:12]} 23. Bd2 {[%emt 0:04:06]} Qd7 {[%emt 0:00:13]} 24. Qd3 {[%emt 0:11:07]} Qd5 {[%emt 0:01:04]} 25. h3 {[%emt 0:02:35]} 1/2-1/2

[Event "SVK ECo-C Extraliga 2018-19"]
[Site "Slovakia"]
[Date "2019.04.13"]
[Round "10.4"]
[White "Ftacnik, Lubomir"]
[Black "Druska, Juraj"]
[Result "1-0"]
[ECO "A06"]
[WhiteElo "2516"]
[BlackElo "2455"]
[Annotator "ChessBase"]
[PlyCount "45"]
[EventDate "2018.11.10"]
[EventType "team-tourn"]
[EventCountry "SVK"]
[SourceTitle "playchess.com"]
[Source "ChessBase"]
[SourceQuality "1"]
[WhiteTeam "Slovan"]
[BlackTeam "Prakovce"]
[TimeControl "40/5400+30:1800+30"]

1. Nf3 {[%emt 0:00:00]} d5 {[%emt 0:00:00]} 2. d4 {[%emt 0:00:00]} e6 {[%emt 0:00:08]} 3. c4 {[%emt 0:00:13]} a6 {[%emt 0:00:21]} 4. cxd5 {[%emt 0:01:18]} exd5 {[%emt 0:00:17]} 5. Nc3 {[%emt 0:00:10]} Nf6 {[%emt 0:00:30]} 6. Bf4 {[%emt 0:01:58]} Bd6 {[%emt 0:00:10]} 7. Bg3 {[%emt 0:01:47]} O-O {[%emt 0:13:09]} 8. e3 {[%emt 0:00:40]} c6 {[%emt 0:01:36]} 9. Qc2 {[%emt 0:04:45]} Bg4 {[%emt 0:11:22]} 10. Ne5 {[%emt 0:04:31]} Bh5 {[%emt 0:00:14]} 11. Rc1 {[%emt 0:08:31]} Re8 {[%emt 0:12:26]} 12. Bd3 {[%emt 0:02:09]} Bg6 {[%emt 0:02:37]} 13. Nxg6 {[%emt 0:04:01]} Bxg3 {[%emt 0:08:50]} 14. hxg3 {[%emt 0:08:56]} hxg6 {[%emt 0:00:14]} 15. Rh3 {[%emt 0:01:37]} c5 {[%emt 0:03:10]} 16. dxc5 {[%emt 0:08:20]} d4 {[%emt 0:00:12]} 17. Ne4 {[%emt 0:01:55]} dxe3 {[%emt 0:11:09]} 18. Nd6 {[%emt 0:07:39]} exf2+ {[%emt 0:18:40]} 19. Kxf2 {[%emt 0:00:28]} Qe7 {[%emt 0:00:10]} 20. Kg1 {[%emt 0:23:58]} Qe3+ {[%emt 0:01:34]} 21. Kh1 {[%emt 0:01:55]} Nc6 {[%emt 0:03:13]} 22. g4 {[%emt 0:02:55]} Qg5 {[%emt 0:00:36]} 23. Rh8+ {[%emt 0:00:09]} 1-0

[Event "SVK ECo-C Extraliga 2018-19"]
[Site "Slovakia"]
[Date "2019.04.13"]
[Round "10.4"]
[White "Bokros, Albert"]
[Black "Kriebel, Tadeas"]
[Result "0-1"]
[ECO "C90"]
[WhiteElo "2466"]
[BlackElo "2514"]
[Annotator "ChessBase"]
[PlyCount "84"]
[EventDate "2018.11.10"]
[EventType "team-tourn"]
[EventCountry "SVK"]
[SourceTitle "playchess.com"]
[Source "ChessBase"]
[SourceQuality "1"]
[WhiteTeam "Streda"]
[BlackTeam "Snina"]
[TimeControl "40/5400+30:1800+30"]

1. e4 {[%emt 0:00:00]} e5 {[%emt 0:00:00]} 2. Nf3 {[%emt 0:00:00]} Nc6 {[%emt 0:00:00]} 3. Bb5 {[%emt 0:00:00]} a6 {[%emt 0:00:00]} 4. Ba4 {[%emt 0:00:05]} Nf6 {[%emt 0:00:00]} 5. d3 {[%emt 0:00:20]} d6 {[%emt 0:00:04]} 6. c3 {[%emt 0:01:02]} Be7 {[%emt 0:00:42]} 7. O-O {[%emt 0:02:34]} O-O {[%emt 0:00:12]} 8. Re1 {[%emt 0:00:35]} b5 {[%emt 0:02:38]} 9. Bb3 {[%emt 0:01:53]} Na5 {[%emt 0:00:48]} 10. Bc2 {[%emt 0:00:07]} c5 {[%emt 0:00:05]} 11. Nbd2 {[%emt 0:00:12]} Re8 {[%emt 0:02:21]} 12. Nf1 {[%emt 0:01:30]} Bf8 {[%emt 0:00:25]} 13. Ng3 {[%emt 0:00:28]} g6 {[%emt 0:01:50]} 14. h3 {[%emt 0:00:43]} Bb7 {[%emt 0:01:53]} 15. d4 exd4 {[%emt 0:04:06]} 16. cxd4 {[%emt 0:09:44]} cxd4 {[%emt 0:00:55]} 17. Bf4 {[%emt 0:10:13]} Bg7 {[%emt 0:01:12]} 18. Nxd4 Nc4 19. b3 {[%emt 0:30:51]} Na3 {[%emt 0:00:51]} 20. Bd3 {[%emt 0:06:12]} Nh5 {[%emt 0:03:14]} 21. Nxh5 {[%emt 0:01:08]} Bxd4 {[%emt 0:00:06]} 22. Qg4 {[%emt 0:00:42]} Bc8 {[%emt 0:34:52]} 23. Qg3 {[%emt 0:03:33]} Be5 {[%emt 0:00:10]} 24. Rad1 {[%emt 0:13:18]} Qe7 {[%emt 0:00:24]} 25. Qf3 {[%emt 0:10:40]} gxh5 {[%emt 0:01:04]} 26. Bc1 {[%emt 0:00:07]} b4 {[%emt 0:00:50]} 27. Qxh5 {[%emt 0:00:12]} f6 {[%emt 0:10:44]} 28. f4 {[%emt 0:03:19]} Bd4+ {[%emt 0:04:51]} 29. Kh1 {[%emt 0:00:58]} Be6 {[%emt 0:00:33]} 30. e5 {[%emt 0:01:44]} dxe5 {[%emt 0:01:05]} 31. fxe5 {[%emt 0:00:09]} Bxe5 {[%emt 0:03:39]} 32. Rxe5 {[%emt 0:01:13]} fxe5 {[%emt 0:00:09]} 33. Bg5 {[%emt 0:00:06]} Qf7 {[%emt 0:01:13]} 34. Qh4 {[%emt 0:00:43]} Bf5 {[%emt 0:01:49]} 35. Rf1 {[%emt 0:01:16]} e4 {[%emt 0:00:15]} 36. Be2 {[%emt 0:00:05]} Qe6 {[%emt 0:04:24]} 37. Bf6 {[%emt 0:01:05]} Bg6 {[%emt 0:04:51]} 38. Qh6 {[%emt 0:00:40]} Ra7 {[%emt 0:01:28]} 39. Bb2 {[%emt 0:00:17]} Rf7 {[%emt 0:05:57]} 40. Rd1 {[%emt 0:01:28]} e3 {[%emt 0:03:27]} 41. Rd4 {[%emt 0:09:00]} Qf5 {[%emt 0:07:47]} 42. Rxb4 {[%emt 0:05:48]} Qb1+ {[%emt 0:00:12]} 0-1

[Event "SVK ECo-C Extraliga 2018-19"]
[Site "Slovakia"]
[Date "2019.04.13"]
[Round "10.4"]
[White "Rigo, Zsolt"]
[Black "Nayhebaver, Martin"]
[Result "1/2-1/2"]
[ECO "B53"]
[WhiteElo "2396"]
[BlackElo "2464"]
[Annotator "ChessBase"]
[PlyCount "46"]
[EventDate "2018.11.10"]
[EventType "team-tourn"]
[EventCountry "SVK"]
[SourceTitle "playchess.com"]
[Source "ChessBase"]
[SourceQuality "1"]
[WhiteTeam "Modra"]
[BlackTeam "Zilina"]
[TimeControl "40/5400+30:1800+30"]

{[WhiteElo "2396"] [WhiteCountry ""] [WhiteFideId "14903172"] [BlackElo "2464"] [BlackCountry ""] [BlackFideId "14923432"]} 1. e4 c5 2. Nf3 d6 3. d4 cxd4 4. Qxd4 Nf6 5. Bb5+ Bd7 6. c4 g6 7. Nc3 Bg7 8. O-O O-O 9. Qd3 a6 10. Bxd7 Nbxd7 11. Bd2 Rc8 12. Rac1 Re8 13. b3 Qa5 14. Rfe1 Qa3 15. h3 Nc5 16. Qc2 Ne6 17. Nd5 Nxd5 18. exd5 Nc7 19. Qd3 Qxa2 20. Rc2 Qa3 21. Bc1 Qb4 22. Bd2 Qa3 23. Bc1 Qb4 1/2-1/2

[Event "SVK ECo-C Extraliga 2018-19"]
[Site "Slovakia"]
[Date "2019.04.13"]
[Round "10.4"]
[White "Motuz, Karol"]
[Black "Molnar, Erno"]
[Result "1/2-1/2"]
[ECO "A05"]
[WhiteElo "2375"]
[BlackElo "2194"]
[Annotator "NA"]
[PlyCount "41"]
[EventDate "2018.11.10"]
[EventType "team-tourn"]
[EventCountry "SVK"]
[SourceTitle "playchess.com"]
[Source "ChessBase"]
[SourceQuality "1"]
[WhiteTeam "Dubnica"]
[BlackTeam "Komarno"]
[TimeControl "40/5400+30:1800+30"]

1. Nf3 {[%emt 0:00:00]} Nf6 {[%emt 0:00:00]} 2. c4 {[%emt 0:00:00]} g6 {[%emt 0:00:00]} 3. d4 {[%emt 0:00:48]} Bg7 {[%emt 0:00:00]} 4. g3 {[%emt 0:00:45]} d5 {[%emt 0:02:57]} 5. cxd5 {[%emt 0:00:43]} Nxd5 {[%emt 0:00:10]} 6. Bg2 {[%emt 0:00:21]} Nb6 {[%emt 0:02:24]} 7. Nc3 {[%emt 0:02:19]} Nc6 {[%emt 0:09:02]} 8. e3 {[%emt 0:00:33]} O-O {[%emt 0:09:59]} 9. O-O {[%emt 0:00:06]} e5 {[%emt 0:02:20]} 10. d5 {[%emt 0:01:04]} Nb4 {[%emt 0:13:08]} 11. e4 {[%emt 0:02:44]} c6 {[%emt 0:07:37]} 12. a3 {[%emt 0:08:52]} Na6 {[%emt 0:00:17]} 13. dxc6 {[%emt 0:10:47]} bxc6 {[%emt 0:02:04]} 14. Qc2 {[%emt 0:07:35]} Nc5 {[%emt 0:06:29]} 15. Rd1 {[%emt 0:01:55]} Qc7 {[%emt 0:02:19]} 16. Be3 {[%emt 0:12:25]} Ne6 {[%emt 0:00:30]} 17. Na4 $11 {[%emt 0:01:54]} Nxa4 {[%emt 0:11:25]} 18. Qxa4 {[%emt 0:00:07]} c5 {[%emt 0:00:51]} 19. Rac1 {[%emt 0:03:38]} Bb7 {[%emt 0:01:11]} 20. Bh3 {[%emt 0:07:30]} Nd4 {[%emt 0:03:23]} 21. Bxd4 {[%emt 0:19:38]} 1/2-1/2

[Event "SVK ECo-C Extraliga 2018-19"]
[Site "Slovakia"]
[Date "2019.04.13"]
[Round "10.5"]
[White "Mrva, Martin"]
[Black "Varga, Zoltan"]
[Result "0-1"]
[ECO "B03"]
[WhiteElo "2416"]
[BlackElo "2451"]
[Annotator "ChessBase"]
[PlyCount "82"]
[EventDate "2018.11.10"]
[EventType "team-tourn"]
[EventCountry "SVK"]
[SourceTitle "playchess.com"]
[Source "ChessBase"]
[SourceQuality "1"]
[WhiteTeam "Snina"]
[BlackTeam "Streda"]
[TimeControl "40/5400+30:1800+30"]

1. e4 {[%emt 0:00:00]} Nf6 {[%emt 0:00:00]} 2. e5 {[%emt 0:00:00]} Nd5 {[%emt 0:00:00]} 3. d4 {[%emt 0:00:00]} d6 {[%emt 0:00:00]} 4. c4 {[%emt 0:00:11]} Nb6 {[%emt 0:00:00]} 5. exd6 {[%emt 0:00:25]} cxd6 {[%emt 0:00:00]} 6. d5 {[%emt 0:02:29]} e5 {[%emt 0:01:08]} 7. Nc3 {[%emt 0:01:12]} Be7 {[%emt 0:00:20]} 8. Nf3 {[%emt 0:00:49]} O-O {[%emt 0:00:11]} 9. Be2 {[%emt 0:00:22]} Bg4 {[%emt 0:03:41]} 10. b3 {[%emt 0:10:02]} Bxf3 {[%emt 0:10:32]} 11. Bxf3 {[%emt 0:02:53]} f5 {[%emt 0:00:05]} 12. g3 {[%emt 0:04:58]} e4 {[%emt 0:05:07]} 13. Bg2 {[%emt 0:01:16]} Bf6 {[%emt 0:00:07]} 14. Bd2 {[%emt 0:01:52]} N8d7 {[%emt 0:07:30]} 15. O-O {[%emt 0:01:20]} Nc5 {[%emt 0:00:37]} 16. Qc2 {[%emt 0:03:54]} Rc8 {[%emt 0:04:52]} 17. Rad1 {[%emt 0:01:24]} Re8 {[%emt 0:02:34]} 18. Ne2 {[%emt 0:11:20]} Nbd7 {[%emt 0:01:58]} 19. Bf4 {[%emt 0:28:00]} Ne5 {[%emt 0:03:57]} 20. Nd4 {[%emt 0:05:13]} g6 {[%emt 0:00:36]} 21. Kh1 {[%emt 0:07:52]} Ned3 {[%emt 0:06:55]} 22. Be3 {[%emt 0:02:35]} a6 23. Qb1 Ne5 {[%emt 0:17:36]} 24. Rd2 {[%emt 0:08:05]} Qd7 {[%emt 0:01:51]} 25. Qd1 {[%emt 0:00:46]} h5 {[%emt 0:06:22]} 26. Re2 {[%emt 0:02:49]} b5 {[%emt 0:03:39]} 27. cxb5 {[%emt 0:00:13]} axb5 {[%emt 0:00:01]} 28. Rc2 {[%emt 0:01:03]} Ncd3 29. Nc6 {[%emt 0:00:53]} Nxc6 {[%emt 0:01:50]} 30. dxc6 {[%emt 0:00:06]} Qe6 {[%emt 0:00:02]} 31. Qd2 {[%emt 0:01:37]} d5 {[%emt 0:00:18]} 32. c7 {[%emt 0:00:04]} b4 {[%emt 0:01:35]} 33. Rd1 {[%emt 0:00:34]} Re7 {[%emt 0:08:06]} 34. Bf1 {[%emt 0:00:02]} Bc3 {[%emt 0:02:45]} 35. Rxc3 {[%emt 0:01:06]} bxc3 {[%emt 0:00:04]} 36. Qxc3 {[%emt 0:00:02]} Rexc7 {[%emt 0:00:03]} 37. Qa1 {[%emt 0:00:15]} Rc2 {[%emt 0:01:21]} 38. Kg1 {[%emt 0:00:29]} Nxf2 {[%emt 0:01:41]} 39. Bxf2 {[%emt 0:02:11]} e3 {[%emt 0:00:11]} 40. Bg2 {[%emt 0:00:34]} exf2+ {[%emt 0:00:24]} 41. Kh1 {[%emt 0:30:21]} Rc1 {[%emt 0:31:36]} 0-1